[Event "Late-Titled-Tuesday-Blitz-November-28-2023"]
[Site "Chess.com"]
[Date "2023.11.28"]
[Round "2"]
[White "Bala-Afiada"]
[Black "emeli_chess"]
[Result "0-1"]
[WhiteElo "1862"]
[BlackElo "2376"]
[TimeControl "180+1"]
[EndTime "14:18:44 PST"]
[Termination "emeli_chess won by resignation"]

1. d4 {[%clk 0:03:00.9]} 1... Nf6 {[%clk 0:02:53.5]} 2. c4 {[%clk 0:03:00.5]}
2... e6 {[%clk 0:02:53.1]} 3. g3 {[%clk 0:03:00.5]} 3... Bb4+ {[%clk 0:02:51.8]}
4. Bd2 {[%clk 0:03:00.5]} 4... Bxd2+ {[%clk 0:02:45.8]} 5. Nxd2 {[%clk
0:03:01.4]} 5... d5 {[%clk 0:02:45.2]} 6. Ngf3 {[%clk 0:03:01.7]} 6... c6 {[%clk
0:02:39.8]} 7. Bg2 {[%clk 0:03:01.5]} 7... O-O {[%clk 0:02:39.2]} 8. O-O {[%clk
0:03:02.1]} 8... Nbd7 {[%clk 0:02:36]} 9. Qc2 {[%clk 0:03:02.6]} 9... Qe7 {[%clk
0:02:34.5]} 10. e4 {[%clk 0:03:02.4]} 10... dxe4 {[%clk 0:02:33.7]} 11. Nxe4
{[%clk 0:03:03.3]} 11... Nxe4 {[%clk 0:02:33.7]} 12. Qxe4 {[%clk 0:03:04.2]}
12... Nf6 {[%clk 0:02:26.8]} 13. Qc2 {[%clk 0:03:03.7]} 13... Rd8 {[%clk
0:02:24.5]} 14. Rad1 {[%clk 0:02:58.7]} 14... Bd7 {[%clk 0:02:23.6]} 15. Ne5
{[%clk 0:02:56]} 15... Be8 {[%clk 0:02:23.2]} 16. c5 {[%clk 0:02:53.1]} 16...
Nd5 {[%clk 0:02:16.1]} 17. Nc4 {[%clk 0:02:47.4]} 17... f6 {[%clk 0:02:09.1]}
18. Nd6 {[%clk 0:02:42]} 18... Bg6 {[%clk 0:02:08.7]} 19. Qb3 {[%clk 0:02:31.1]}
19... b6 {[%clk 0:01:59.1]} 20. Rfe1 {[%clk 0:02:27.6]} 20... bxc5 {[%clk
0:01:45.6]} 21. dxc5 {[%clk 0:02:27.3]} 21... Rab8 {[%clk 0:01:41.5]} 22. Qa3
{[%clk 0:02:13.4]} 22... Qd7 {[%clk 0:01:26.8]} 23. Rd2 {[%clk 0:01:54.1]} 23...
h6 {[%clk 0:01:16.6]} 24. Rde2 {[%clk 0:01:52.3]} 24... e5 {[%clk 0:01:15.1]}
25. b3 {[%clk 0:01:36.3]} 25... Kh8 {[%clk 0:01:06.1]} 26. Qc1 {[%clk
0:01:31.3]} 26... Nc7 {[%clk 0:00:56.7]} 27. Qc4 {[%clk 0:01:22.1]} 27... Ne6
{[%clk 0:00:55.9]} 28. Bh3 {[%clk 0:01:17.2]} 28... Re8 {[%clk 0:00:40]} 29. b4
{[%clk 0:01:10.9]} 29... Re7 {[%clk 0:00:37.9]} 30. f4 {[%clk 0:01:10]} 30...
Rf8 {[%clk 0:00:16.7]} 31. f5 {[%clk 0:01:07.4]} 31... Nd4 {[%clk 0:00:11]} 32.
Rf2 {[%clk 0:00:52.3]} 32... Bh7 {[%clk 0:00:09.9]} 33. a3 {[%clk 0:00:43.4]}
33... Bg8 {[%clk 0:00:09.8]} 34. Qd3 {[%clk 0:00:39.3]} 34... Bd5 {[%clk
0:00:09.3]} 35. Bg2 {[%clk 0:00:39.5]} 35... Bxg2 {[%clk 0:00:08.7]} 36. Kxg2
{[%clk 0:00:40.2]} 36... Rd8 {[%clk 0:00:08]} 37. Qe4 {[%clk 0:00:35.9]} 37...
Nb5 {[%clk 0:00:06.8]} 38. a4 {[%clk 0:00:34.1]} 38... Nxd6 {[%clk 0:00:06.2]}
39. cxd6 {[%clk 0:00:34.3]} 39... Qxd6 {[%clk 0:00:06.6]} 40. Rc1 {[%clk
0:00:28.6]} 40... Qd5 {[%clk 0:00:06.6]} 41. Qxd5 {[%clk 0:00:23.9]} 41... cxd5
{[%clk 0:00:06.7]} 42. b5 {[%clk 0:00:24.1]} 42... d4 {[%clk 0:00:06.7]} 43. a5
{[%clk 0:00:23]} 43... e4 {[%clk 0:00:06.8]} 44. b6 {[%clk 0:00:22.6]} 44...
axb6 {[%clk 0:00:06.3]} 45. axb6 {[%clk 0:00:22.6]} 45... e3 {[%clk 0:00:06.7]}
46. Rff1 {[%clk 0:00:09.4]} 46... d3 {[%clk 0:00:06.9]} 47. Rc7 {[%clk
0:00:09.1]} 47... Rxc7 {[%clk 0:00:06.3]} 48. bxc7 {[%clk 0:00:10]} 48... Rc8
{[%clk 0:00:06.5]} 49. Rd1 {[%clk 0:00:08.1]} 49... d2 {[%clk 0:00:06]} 50. Kf3
{[%clk 0:00:07.9]} 50... Rxc7 {[%clk 0:00:06.1]} 51. Kxe3 {[%clk 0:00:07.6]}
51... Rc5 {[%clk 0:00:06.3]} 52. Rxd2 {[%clk 0:00:04.2]} 52... Rxf5 {[%clk
0:00:06.3]} 53. Ke4 {[%clk 0:00:04.6]} 53... Re5+ {[%clk 0:00:06.1]} 54. Kf4
{[%clk 0:00:04.3]} 54... Kh7 {[%clk 0:00:06.5]} 55. Rd7 {[%clk 0:00:04.1]} 55...
h5 {[%clk 0:00:06.3]} 56. h4 {[%clk 0:00:04.5]} 56... Kh6 {[%clk 0:00:06.2]} 57.
Kf3 {[%clk 0:00:04.2]} 57... g5 {[%clk 0:00:05.6]} 58. Rd8 {[%clk 0:00:04.8]}
58... g4+ {[%clk 0:00:05.2]} 59. Kf4 {[%clk 0:00:04.9]} 59... Kg6 {[%clk
0:00:05]} 60. Rg8+ {[%clk 0:00:05.2]} 60... Kf7 {[%clk 0:00:04.5]} 61. Rb8
{[%clk 0:00:06.1]} 61... Rc5 {[%clk 0:00:04.1]} 62. Rb7+ {[%clk 0:00:06.6]}
62... Kg6 {[%clk 0:00:04.4]} 63. Rb6 {[%clk 0:00:07]} 63... Rc4+ {[%clk
0:00:04.6]} 64. Ke3 {[%clk 0:00:07.4]} 64... Rc3+ {[%clk 0:00:03.7]} 65. Kf4
{[%clk 0:00:08.1]} 65... Rf3+ {[%clk 0:00:03.8]} 66. Ke4 {[%clk 0:00:08.1]}
66... Rxg3 {[%clk 0:00:04.2]} 67. Rb5 {[%clk 0:00:08.1]} 67... Rh3 {[%clk
0:00:04.1]} 68. Kf4 {[%clk 0:00:07.2]} 68... Rxh4 {[%clk 0:00:04.3]} 69. Rb8
{[%clk 0:00:07.5]} 69... Rh3 {[%clk 0:00:04.2]} 70. Rg8+ {[%clk 0:00:07.6]}
70... Kf7 {[%clk 0:00:04]} 71. Rh8 {[%clk 0:00:08.1]} 71... Rf3+ {[%clk
0:00:03.8]} 72. Ke4 {[%clk 0:00:07.8]} 72... Rh3 {[%clk 0:00:02.7]} 73. Kf4
{[%clk 0:00:07.9]} 73... Rh1 {[%clk 0:00:02.8]} 74. Rh7+ {[%clk 0:00:07.9]}
74... Kg6 {[%clk 0:00:03.1]} 75. Rb7 {[%clk 0:00:08.7]} 75... Rf1+ {[%clk
0:00:02.9]} 76. Ke3 {[%clk 0:00:09.2]} 76... g3 {[%clk 0:00:02.4]} 77. Ke2
{[%clk 0:00:09.9]} 77... g2 {[%clk 0:00:02.5]} 78. Rb8 {[%clk 0:00:08.8]} 78...
g1=Q {[%clk 0:00:02.9]} 79. Rg8+ {[%clk 0:00:09.5]} 79... Kf7 {[%clk 0:00:02.6]}
80. Rxg1 {[%clk 0:00:10.4]} 80... Rxg1 {[%clk 0:00:02.7]} 81. Kf2 {[%clk
0:00:11.3]} 81... Rg6 {[%clk 0:00:03]} 82. Kf3 {[%clk 0:00:11.5]} 82... h4
{[%clk 0:00:03.9]} 83. Kf4 {[%clk 0:00:12.4]} 83... h3 {[%clk 0:00:04.7]} 0-1

[Event "Late-Titled-Tuesday-Blitz-November-28-2023"]
[Site "Chess.com"]
[Date "2023.11.28"]
[Round "2"]
[White "zouchen6"]
[Black "Staudenhocker43"]
[Result "1-0"]
[WhiteElo "2755"]
[BlackElo "2516"]
[TimeControl "180+1"]
[EndTime "14:18:49 PST"]
[Termination "zouchen6 won on time"]

1. Nf3 {[%clk 0:03:00.9]} 1... Nf6 {[%clk 0:02:58.7]} 2. d4 {[%clk 0:02:57.2]}
2... g6 {[%clk 0:02:58.4]} 3. c4 {[%clk 0:02:53.4]} 3... Bg7 {[%clk 0:02:58.5]}
4. Nc3 {[%clk 0:02:53.1]} 4... O-O {[%clk 0:02:58.9]} 5. e4 {[%clk 0:02:52.5]}
5... d6 {[%clk 0:02:59.3]} 6. Be2 {[%clk 0:02:51.9]} 6... e5 {[%clk 0:02:59.4]}
7. O-O {[%clk 0:02:52]} 7... Nc6 {[%clk 0:02:59.1]} 8. d5 {[%clk 0:02:49.8]}
8... Ne7 {[%clk 0:02:59.2]} 9. b4 {[%clk 0:02:46.4]} 9... a5 {[%clk 0:02:57.1]}
10. bxa5 {[%clk 0:02:47.3]} 10... c5 {[%clk 0:02:54.9]} 11. a4 {[%clk
0:02:45.9]} 11... Rxa5 {[%clk 0:02:52.7]} 12. Ra3 {[%clk 0:02:46]} 12... Ne8
{[%clk 0:02:42.8]} 13. Nb5 {[%clk 0:02:44.8]} 13... Ra6 {[%clk 0:02:36.3]} 14.
Ne1 {[%clk 0:02:10.1]} 14... f5 {[%clk 0:02:34.4]} 15. exf5 {[%clk 0:02:10.4]}
15... Bxf5 {[%clk 0:02:17.5]} 16. Bb2 {[%clk 0:02:06.2]} 16... Bh6 {[%clk
0:01:55.5]} 17. Kh1 {[%clk 0:01:54.1]} 17... Nc7 {[%clk 0:01:48.9]} 18. Nc3
{[%clk 0:01:49.7]} 18... Rb6 {[%clk 0:01:36.4]} 19. Bc1 {[%clk 0:01:37.9]} 19...
Bxc1 {[%clk 0:01:18.9]} 20. Qxc1 {[%clk 0:01:38.8]} 20... Rb4 {[%clk 0:01:07.2]}
21. a5 {[%clk 0:01:31.2]} 21... Na6 {[%clk 0:00:56.1]} 22. g4 {[%clk 0:01:04.6]}
22... Bd7 {[%clk 0:00:47.8]} 23. Qc2 {[%clk 0:01:05]} 23... b6 {[%clk
0:00:29.9]} 24. axb6 {[%clk 0:01:00.4]} 24... Rxb6 {[%clk 0:00:30.3]} 25. Ne4
{[%clk 0:00:58.2]} 25... Nb4 {[%clk 0:00:29]} 26. Qd2 {[%clk 0:00:58.5]} 26...
Kg7 {[%clk 0:00:22.9]} 27. Rh3 {[%clk 0:00:54.8]} 27... Ng8 {[%clk 0:00:22.3]}
28. f4 {[%clk 0:00:50.6]} 28... exf4 {[%clk 0:00:20.6]} 29. Rxf4 {[%clk
0:00:51.5]} 29... Qe7 {[%clk 0:00:20.3]} 30. Rxf8 {[%clk 0:00:42.2]} 30... Kxf8
{[%clk 0:00:19]} 31. Qf4+ {[%clk 0:00:36.9]} 31... Kg7 {[%clk 0:00:18.5]} 32.
Ng5 {[%clk 0:00:29.8]} 32... h6 {[%clk 0:00:16.6]} 33. Ne4 {[%clk 0:00:30.4]}
33... g5 {[%clk 0:00:16]} 34. Qe3 {[%clk 0:00:29.3]} 34... Qe5 {[%clk
0:00:15.9]} 35. Nf3 {[%clk 0:00:25.6]} 35... Qa1+ {[%clk 0:00:15.4]} 36. Kg2
{[%clk 0:00:21]} 36... Bxg4 {[%clk 0:00:15.6]} 37. Rxh6 {[%clk 0:00:05.9]} 37...
Bxf3+ {[%clk 0:00:14.7]} 38. Bxf3 {[%clk 0:00:06.8]} 38... Nxh6 {[%clk
0:00:10.6]} 39. Qxg5+ {[%clk 0:00:07.1]} 39... Kf8 {[%clk 0:00:09.9]} 40. Qd8+
{[%clk 0:00:05.4]} 40... Kg7 {[%clk 0:00:09.7]} 41. Qc7+ {[%clk 0:00:04.7]}
41... Nf7 {[%clk 0:00:08.9]} 42. Qxb6 {[%clk 0:00:05.6]} 42... Qb2+ {[%clk
0:00:08.6]} 43. Nf2 {[%clk 0:00:06.2]} 43... Qe5 {[%clk 0:00:07.8]} 44. Qc7
{[%clk 0:00:05.9]} 44... Qg5+ {[%clk 0:00:07.1]} 45. Ng4 {[%clk 0:00:05.4]}
45... Qf4 {[%clk 0:00:06.1]} 46. Qe7 {[%clk 0:00:04.8]} 46... Nd3 {[%clk
0:00:05.6]} 47. Qe3 {[%clk 0:00:05.1]} 47... Qxe3 {[%clk 0:00:05.4]} 48. Nxe3
{[%clk 0:00:06]} 48... Nde5 {[%clk 0:00:06]} 49. Be2 {[%clk 0:00:06.6]} 49...
Kf6 {[%clk 0:00:06.2]} 50. Kf2 {[%clk 0:00:07.4]} 50... Kg5 {[%clk 0:00:06.5]}
51. h3 {[%clk 0:00:07.7]} 51... Kf4 {[%clk 0:00:06.6]} 52. Ng2+ {[%clk
0:00:07.8]} 52... Ke4 {[%clk 0:00:06.8]} 53. h4 {[%clk 0:00:08.7]} 53... Kd4
{[%clk 0:00:05.7]} 54. Ne3 {[%clk 0:00:08.8]} 54... Nh6 {[%clk 0:00:05.2]} 55.
h5 {[%clk 0:00:08.9]} 55... Ke4 {[%clk 0:00:05.6]} 56. Ng2 {[%clk 0:00:08.6]}
56... Kd4 {[%clk 0:00:05.8]} 57. Ne3 {[%clk 0:00:09]} 57... Ke4 {[%clk 0:00:06]}
58. Nc2 {[%clk 0:00:09.7]} 58... Kf4 {[%clk 0:00:06]} 59. Na3 {[%clk 0:00:10]}
59... Nf5 {[%clk 0:00:06.2]} 60. Nb5 {[%clk 0:00:10.3]} 60... Ke4 {[%clk
0:00:04.9]} 61. Bf1 {[%clk 0:00:10.7]} 61... Kf4 {[%clk 0:00:04.3]} 62. Be2
{[%clk 0:00:07.8]} 62... Kg5 {[%clk 0:00:04]} 63. Nc7 {[%clk 0:00:05.8]} 63...
Nf7 {[%clk 0:00:04]} 64. Ne6+ {[%clk 0:00:06.7]} 64... Kf6 {[%clk 0:00:04.4]}
65. Nf4 {[%clk 0:00:06.5]} 65... Nd4 {[%clk 0:00:04.1]} 66. Bf1 {[%clk
0:00:06.2]} 66... Kf5 {[%clk 0:00:03.9]} 67. Nd3 {[%clk 0:00:05.6]} 67... Kg5
{[%clk 0:00:03.7]} 68. Be2 {[%clk 0:00:06.1]} 68... Nh6 {[%clk 0:00:03.5]} 69.
Bd1 {[%clk 0:00:05.8]} 69... Nhf5 {[%clk 0:00:03.6]} 70. Ke1 {[%clk 0:00:04.7]}
70... Ng7 {[%clk 0:00:03.8]} 71. Nf2 {[%clk 0:00:05.1]} 71... Nxh5 {[%clk
0:00:03.9]} 72. Ne4+ {[%clk 0:00:05.4]} 72... Kg6 {[%clk 0:00:04.2]} 73. Bxh5+
{[%clk 0:00:04.1]} 73... Kxh5 {[%clk 0:00:05.1]} 74. Nxd6 {[%clk 0:00:05]} 74...
Kg6 {[%clk 0:00:04.7]} 75. Kd2 {[%clk 0:00:03.3]} 75... Kf6 {[%clk 0:00:04.5]}
76. Nb7 {[%clk 0:00:03.7]} 76... Ke5 {[%clk 0:00:02.4]} 77. Kc3 {[%clk
0:00:04.6]} 77... Ne2+ {[%clk 0:00:01.3]} 78. Kd3 {[%clk 0:00:05.1]} 78... Nf4+
{[%clk 0:00:01.4]} 79. Ke3 {[%clk 0:00:05.7]} 79... Nxd5+ {[%clk 0:00:01.9]} 80.
Kd3 {[%clk 0:00:03.9]} 1-0

[Event "Late-Titled-Tuesday-Blitz-November-28-2023"]
[Site "Chess.com"]
[Date "2023.11.28"]
[Round "2"]
[White "ThePeacefulPanda"]
[Black "krzyzan94"]
[Result "1/2-1/2"]
[WhiteElo "2528"]
[BlackElo "2746"]
[TimeControl "180+1"]
[EndTime "14:18:56 PST"]
[Termination "Game drawn - insufficient material"]

1. Nf3 {[%clk 0:03:00.9]} 1... Nf6 {[%clk 0:02:58.9]} 2. d4 {[%clk 0:03:01]}
2... e6 {[%clk 0:02:59.2]} 3. c4 {[%clk 0:03:00.5]} 3... Bb4+ {[%clk 0:02:57.7]}
4. Bd2 {[%clk 0:03:00]} 4... c5 {[%clk 0:02:56.9]} 5. e3 {[%clk 0:02:58.5]} 5...
O-O {[%clk 0:02:55.8]} 6. a3 {[%clk 0:02:58]} 6... Bxd2+ {[%clk 0:02:55.7]} 7.
Qxd2 {[%clk 0:02:57.6]} 7... cxd4 {[%clk 0:02:54.8]} 8. Nxd4 {[%clk 0:02:56.4]}
8... d5 {[%clk 0:02:54.3]} 9. Nf3 {[%clk 0:02:50.6]} 9... Nc6 {[%clk 0:02:52.5]}
10. Be2 {[%clk 0:02:50.1]} 10... Ne4 {[%clk 0:02:45.9]} 11. Qc1 {[%clk 0:02:46]}
11... Qa5+ {[%clk 0:02:33.4]} 12. Nbd2 {[%clk 0:02:45.2]} 12... dxc4 {[%clk
0:02:30.9]} 13. O-O {[%clk 0:02:36.1]} 13... Nxd2 {[%clk 0:02:29.9]} 14. Nxd2
{[%clk 0:02:34.5]} 14... b5 {[%clk 0:02:27.5]} 15. a4 {[%clk 0:02:19.2]} 15...
Rd8 {[%clk 0:02:10.2]} 16. Rd1 {[%clk 0:02:01.3]} 16... Bb7 {[%clk 0:02:00.3]}
17. axb5 {[%clk 0:02:00.5]} 17... Qxb5 {[%clk 0:02:01.2]} 18. Bxc4 {[%clk
0:01:56.3]} 18... Qh5 {[%clk 0:01:52.5]} 19. Nf3 {[%clk 0:01:49.1]} 19... Ne5
{[%clk 0:01:21.1]} 20. Nxe5 {[%clk 0:01:46.1]} 20... Qxe5 {[%clk 0:01:22]} 21.
Bf1 {[%clk 0:01:43.4]} 21... Rxd1 {[%clk 0:01:14.6]} 22. Qxd1 {[%clk 0:01:43.4]}
22... Bd5 {[%clk 0:01:09]} 23. b4 {[%clk 0:01:38.5]} 23... h5 {[%clk 0:01:06]}
24. b5 {[%clk 0:01:36.9]} 24... Bb3 {[%clk 0:00:42.6]} 25. Qc1 {[%clk
0:01:27.6]} 25... Rd8 {[%clk 0:00:37.4]} 26. Qa3 {[%clk 0:00:57.8]} 26... Rd7
{[%clk 0:00:17.8]} 27. Rb1 {[%clk 0:00:41.5]} 27... Bd5 {[%clk 0:00:18]} 28. Qb2
{[%clk 0:00:41]} 28... Qxb2 {[%clk 0:00:17.4]} 29. Rxb2 {[%clk 0:00:41.8]} 29...
Rc7 {[%clk 0:00:17.9]} 30. Rb1 {[%clk 0:00:40.3]} 30... f5 {[%clk 0:00:18]} 31.
Be2 {[%clk 0:00:36.8]} 31... h4 {[%clk 0:00:18.3]} 32. Bf3 {[%clk 0:00:35.7]}
32... Bxf3 {[%clk 0:00:17.2]} 33. gxf3 {[%clk 0:00:36.2]} 33... Rc5 {[%clk
0:00:16.9]} 34. h3 {[%clk 0:00:34.7]} 34... Kf7 {[%clk 0:00:17]} 35. f4 {[%clk
0:00:27.6]} 35... Ke7 {[%clk 0:00:16]} 36. Ra1 {[%clk 0:00:27.9]} 36... Rxb5
{[%clk 0:00:16.2]} 37. Rxa7+ {[%clk 0:00:28.1]} 37... Kf6 {[%clk 0:00:17.1]} 38.
Kg2 {[%clk 0:00:28.2]} 38... Rb2 {[%clk 0:00:16.8]} 39. Ra6 {[%clk 0:00:27.6]}
39... Rb1 {[%clk 0:00:17.1]} 40. Rc6 {[%clk 0:00:27.2]} 40... g6 {[%clk
0:00:17.4]} 41. Rd6 {[%clk 0:00:27.2]} 41... Rb3 {[%clk 0:00:17.1]} 42. Rc6
{[%clk 0:00:27.5]} 42... Rd3 {[%clk 0:00:17.4]} 43. Rb6 {[%clk 0:00:27.7]} 43...
Rd5 {[%clk 0:00:18]} 44. Rc6 {[%clk 0:00:28]} 44... Ke7 {[%clk 0:00:18.2]} 45.
Rb6 {[%clk 0:00:28.4]} 45... Rd6 {[%clk 0:00:18.5]} 46. Rb7+ {[%clk 0:00:28.6]}
46... Kf6 {[%clk 0:00:18.8]} 47. Kf3 {[%clk 0:00:28.2]} 47... e5 {[%clk
0:00:18.1]} 48. fxe5+ {[%clk 0:00:25.6]} 48... Kxe5 {[%clk 0:00:19]} 49. Rb5+
{[%clk 0:00:25.2]} 49... Kf6 {[%clk 0:00:19.7]} 50. Rb4 {[%clk 0:00:25.3]} 50...
g5 {[%clk 0:00:19.2]} 51. Kg2 {[%clk 0:00:26]} 51... Rc6 {[%clk 0:00:19.1]} 52.
Ra4 {[%clk 0:00:25.6]} 52... Rd6 {[%clk 0:00:19.4]} 53. Rb4 {[%clk 0:00:25.8]}
53... Ke5 {[%clk 0:00:20]} 54. Ra4 {[%clk 0:00:26.2]} 54... Rd5 {[%clk
0:00:20.6]} 55. Rb4 {[%clk 0:00:26.5]} 55... Kf6 {[%clk 0:00:19.8]} 56. Ra4
{[%clk 0:00:26.6]} 56... Kg6 {[%clk 0:00:20.3]} 57. Rb4 {[%clk 0:00:26.8]} 57...
Kh5 {[%clk 0:00:20.7]} 58. Rb8 {[%clk 0:00:27.1]} 58... Rd6 {[%clk 0:00:20]} 59.
Rh8+ {[%clk 0:00:27.1]} 59... Rh6 {[%clk 0:00:20.4]} 60. Rf8 {[%clk 0:00:16.1]}
60... Kg6 {[%clk 0:00:19.9]} 61. Rg8+ {[%clk 0:00:15.8]} 61... Kf6 {[%clk
0:00:20.1]} 62. Rf8+ {[%clk 0:00:16.3]} 62... Ke6 {[%clk 0:00:20.1]} 63. Rg8
{[%clk 0:00:16.6]} 63... Kf6 {[%clk 0:00:18.4]} 64. Rf8+ {[%clk 0:00:17]} 64...
Ke6 {[%clk 0:00:12.7]} 65. Ra8 {[%clk 0:00:16.9]} 65... Rh7 {[%clk 0:00:11.4]}
66. Ra6+ {[%clk 0:00:16.8]} 66... Ke5 {[%clk 0:00:11.7]} 67. Ra5+ {[%clk
0:00:17.4]} 67... Kf6 {[%clk 0:00:11.7]} 68. Ra6+ {[%clk 0:00:17.5]} 68... Ke5
{[%clk 0:00:11.9]} 69. Rg6 {[%clk 0:00:17.9]} 69... Rh5 {[%clk 0:00:11]} 70. Kf3
{[%clk 0:00:18.5]} 70... g4+ {[%clk 0:00:08.7]} 71. Kg2 {[%clk 0:00:17.8]} 71...
gxh3+ {[%clk 0:00:08.2]} 72. Kxh3 {[%clk 0:00:18.1]} 72... Ke4 {[%clk
0:00:08.9]} 73. Re6+ {[%clk 0:00:09.3]} 73... Kf3 {[%clk 0:00:09]} 74. Rf6
{[%clk 0:00:10]} 74... Ke4 {[%clk 0:00:05.8]} 75. Re6+ {[%clk 0:00:10.3]} 75...
Kf3 {[%clk 0:00:05.5]} 76. Rf6 {[%clk 0:00:10.9]} 76... Ke4 {[%clk 0:00:03.9]}
77. Rf8 {[%clk 0:00:10.8]} 77... Rh7 {[%clk 0:00:02.5]} 78. Re8+ {[%clk
0:00:11.6]} 78... Kf3 {[%clk 0:00:02.8]} 79. Rf8 {[%clk 0:00:12.5]} 79... Rh5
{[%clk 0:00:02.2]} 80. Rf7 {[%clk 0:00:12.3]} 80... Kxf2 {[%clk 0:00:02.2]} 81.
e4 {[%clk 0:00:12.2]} 81... Ke3 {[%clk 0:00:02.6]} 82. Rxf5 {[%clk 0:00:11.6]}
82... Rh8 {[%clk 0:00:02.3]} 83. e5 {[%clk 0:00:12.2]} 83... Ke4 {[%clk
0:00:02.9]} 84. Rg5 {[%clk 0:00:12.8]} 84... Kf4 {[%clk 0:00:03.3]} 85. Rg4+
{[%clk 0:00:12.3]} 85... Kxe5 {[%clk 0:00:03.8]} 86. Rg1 {[%clk 0:00:12.4]}
86... Kf5 {[%clk 0:00:04.1]} 87. Rf1+ {[%clk 0:00:13.3]} 87... Ke4 {[%clk
0:00:04.4]} 88. Re1+ {[%clk 0:00:14.2]} 88... Kf3 {[%clk 0:00:04.9]} 89. Rf1+
{[%clk 0:00:15.1]} 89... Ke2 {[%clk 0:00:05.4]} 90. Rf6 {[%clk 0:00:15.8]} 90...
Ke3 {[%clk 0:00:05.8]} 91. Rg6 {[%clk 0:00:16.4]} 91... Kf4 {[%clk 0:00:06.1]}
92. Rf6+ {[%clk 0:00:17]} 92... Kg5 {[%clk 0:00:06.4]} 93. Ra6 {[%clk
0:00:17.6]} 93... Re8 {[%clk 0:00:06]} 94. Ra5+ {[%clk 0:00:18.1]} 94... Kf4
{[%clk 0:00:06.4]} 95. Kxh4 {[%clk 0:00:17.4]} 95... Rh8+ {[%clk 0:00:06.5]} 96.
Rh5 {[%clk 0:00:17.7]} 96... Rf8 {[%clk 0:00:04.9]} 97. Ra5 {[%clk 0:00:17.1]}
97... Rh8+ {[%clk 0:00:04.1]} 98. Rh5 {[%clk 0:00:17]} 98... Rxh5+ {[%clk
0:00:03.7]} 99. Kxh5 {[%clk 0:00:17.3]} 1/2-1/2